[Event "*** Titled Tuesday Blitz"]
[Site "Chess.com"]
[Date "2019.03.05"]
[Round "6"]
[White "DanielMieles1985"]
[Black "Vuk2000"]
[Result "1-0"]
[WhiteElo "2662"]
[BlackElo "2727"]
[TimeControl "180+2"]
[EndTime "14:28:37 PST"]
[Termination "DanielMieles1985 won on time"]

1. d4 {[%clk 0:03:01.9]} 1... Nf6 {[%clk 0:03:00.8]} 2. c4 {[%clk 0:03:02.9]}
2... e6 {[%clk 0:03:01.9]} 3. Nc3 {[%clk 0:03:02.8]} 3... Bb4 {[%clk 0:03:02.7]}
4. Qc2 {[%clk 0:03:03.7]} 4... O-O {[%clk 0:03:03.4]} 5. e4 {[%clk 0:03:04.4]}
5... d5 {[%clk 0:03:04.2]} 6. e5 {[%clk 0:03:05.6]} 6... Ne4 {[%clk 0:03:05.5]}
7. Bd3 {[%clk 0:03:06.7]} 7... c5 {[%clk 0:03:06.2]} 8. Nf3 {[%clk 0:03:07.9]}
8... cxd4 {[%clk 0:03:01.3]} 9. Nxd4 {[%clk 0:03:08.5]} 9... Bxc3+ {[%clk
0:02:38.5]} 10. bxc3 {[%clk 0:03:08.1]} 10... Nd7 {[%clk 0:02:39.5]} 11. Bf4
{[%clk 0:02:56.6]} 11... Ndc5 {[%clk 0:02:37.3]} 12. O-O {[%clk 0:02:54.9]}
12... Nxd3 {[%clk 0:02:28.6]} 13. Qxd3 {[%clk 0:02:54.8]} 13... b6 {[%clk
0:02:00.9]} 14. cxd5 {[%clk 0:02:54.5]} 14... Qxd5 {[%clk 0:01:52.6]} 15. Rfd1
{[%clk 0:02:06.1]} 15... Bb7 {[%clk 0:01:51.7]} 16. f3 {[%clk 0:02:03.8]} 16...
Nc5 {[%clk 0:01:50.6]} 17. Qe3 {[%clk 0:01:58.4]} 17... Qc4 {[%clk 0:01:44.1]}
18. Bg5 {[%clk 0:01:52.8]} 18... Rfc8 {[%clk 0:01:28.3]} 19. Ne2 {[%clk
0:01:01.8]} 19... Ba6 {[%clk 0:01:00.5]} 20. Ng3 {[%clk 0:00:52.5]} 20... Na4
{[%clk 0:00:45.4]} 21. Ne4 {[%clk 0:00:30.2]} 21... Nxc3 {[%clk 0:00:34]} 22.
Nxc3 {[%clk 0:00:29.2]} 22... Qxc3 {[%clk 0:00:34.9]} 23. Rd8+ {[%clk
0:00:29.8]} 23... Rxd8 {[%clk 0:00:32.1]} 24. Qxc3 {[%clk 0:00:29.6]} 24... Rdc8
{[%clk 0:00:30.7]} 25. Qa3 {[%clk 0:00:29]} 25... Bc4 {[%clk 0:00:31.2]} 26. Be7
{[%clk 0:00:27.4]} 26... b5 {[%clk 0:00:29.1]} 27. Rc1 {[%clk 0:00:23.4]} 27...
a5 {[%clk 0:00:25.8]} 28. Bd6 {[%clk 0:00:23.6]} 28... Rc6 {[%clk 0:00:21.5]}
29. Qb2 {[%clk 0:00:22.7]} 29... a4 {[%clk 0:00:16.7]} 30. a3 {[%clk 0:00:23.1]}
30... f5 {[%clk 0:00:14]} 31. h4 {[%clk 0:00:20.9]} 31... Rac8 {[%clk
0:00:12.2]} 32. Kh2 {[%clk 0:00:21.7]} 32... Ra6 {[%clk 0:00:10.2]} 33. Qd4
{[%clk 0:00:22.2]} 33... Rac6 {[%clk 0:00:07]} 34. Qf4 {[%clk 0:00:22.4]} 34...
Rb6 {[%clk 0:00:06.7]} 35. Qg5 {[%clk 0:00:22.3]} 35... Rb7 {[%clk 0:00:07.9]}
36. h5 {[%clk 0:00:22.6]} 36... h6 {[%clk 0:00:08.6]} 37. Qf4 {[%clk 0:00:23.5]}
37... Rf7 {[%clk 0:00:08]} 38. Qd4 {[%clk 0:00:24]} 38... f4 {[%clk 0:00:05.9]}
39. Kg1 {[%clk 0:00:20]} 39... Rf5 {[%clk 0:00:06.4]} 40. Kf2 {[%clk 0:00:20.2]}
40... Rxh5 {[%clk 0:00:05.6]} 41. Qxf4 {[%clk 0:00:20.4]} 41... Rf5 {[%clk
0:00:06.6]} 42. Qd4 {[%clk 0:00:20.7]} 42... Rd8 {[%clk 0:00:05.7]} 43. Qa7
{[%clk 0:00:17.8]} 43... Rf7 {[%clk 0:00:04.6]} 44. Qb6 {[%clk 0:00:18.9]} 44...
Rc8 {[%clk 0:00:05.2]} 45. Qa6 {[%clk 0:00:16.4]} 45... Rd8 {[%clk 0:00:03.5]}
46. Rxc4 {[%clk 0:00:17]} 46... bxc4 {[%clk 0:00:04.6]} 47. Qxc4 {[%clk
0:00:18.6]} 47... Kh7 {[%clk 0:00:05.6]} 48. Qxe6 {[%clk 0:00:19.3]} 48... Rb7
{[%clk 0:00:06.1]} 49. Qc4 {[%clk 0:00:20]} 49... Kh8 {[%clk 0:00:05.2]} 50.
Qxa4 {[%clk 0:00:20.3]} 50... Rc8 {[%clk 0:00:06.5]} 51. Qa6 {[%clk 0:00:19.8]}
51... Rb2+ {[%clk 0:00:05.5]} 52. Kg3 {[%clk 0:00:20.6]} 52... Rcc2 {[%clk
0:00:07.4]} 53. Qf1 {[%clk 0:00:21.1]} 53... Re2 {[%clk 0:00:08.5]} 54. a4
{[%clk 0:00:20.8]} 54... Ra2 {[%clk 0:00:08.1]} 55. a5 {[%clk 0:00:21.9]} 55...
Reb2 {[%clk 0:00:09.2]} 56. a6 {[%clk 0:00:23]} 56... Rb6 {[%clk 0:00:10.2]} 57.
a7 {[%clk 0:00:22.6]} 57... Rxa7 {[%clk 0:00:09.8]} 58. Qf2 {[%clk 0:00:23.1]}
58... Rab7 {[%clk 0:00:08.6]} 59. Qe3 {[%clk 0:00:23.4]} 59... Rb3 {[%clk
0:00:09.4]} 60. Qe4 {[%clk 0:00:21.5]} 60... Rd7 {[%clk 0:00:07.1]} 61. Kh2
{[%clk 0:00:18.9]} 61... Rb6 {[%clk 0:00:04.3]} 62. Qf5 {[%clk 0:00:18.5]} 62...
Rd8 {[%clk 0:00:03.3]} 63. g4 {[%clk 0:00:19.2]} 63... Re8 {[%clk 0:00:04.3]}
64. g5 {[%clk 0:00:19.1]} 64... hxg5 {[%clk 0:00:05]} 65. Qxg5 {[%clk
0:00:20.2]} 65... Kg8 {[%clk 0:00:06.5]} 66. Kg3 {[%clk 0:00:21.1]} 66... Rb7
{[%clk 0:00:07.3]} 67. Qg6 {[%clk 0:00:17]} 67... Rd8 {[%clk 0:00:04.9]} 68.
Qe6+ {[%clk 0:00:17.5]} 68... Kh7 {[%clk 0:00:05.3]} 69. Qf5+ {[%clk 0:00:18.1]}
69... Kg8 {[%clk 0:00:06.3]} 70. Qe6+ {[%clk 0:00:19.4]} 70... Kh7 {[%clk
0:00:03.6]} 71. f4 {[%clk 0:00:20.7]} 1-0

[Event "*** Titled Tuesday Blitz"]
[Site "Chess.com"]
[Date "2019.03.05"]
[Round "6"]
[White "Sajkochess"]
[Black "MathiasWomacka"]
[Result "1-0"]
[WhiteElo "2250"]
[BlackElo "2263"]
[TimeControl "180+2"]
[EndTime "14:28:45 PST"]
[Termination "Sajkochess won on time"]

1. e4 {[%clk 0:03:01.9]} 1... c5 {[%clk 0:02:40.2]} 2. Nf3 {[%clk 0:03:02.1]}
2... d6 {[%clk 0:02:38.6]} 3. d4 {[%clk 0:03:02.5]} 3... cxd4 {[%clk 0:02:40.5]}
4. Nxd4 {[%clk 0:03:04.3]} 4... Nf6 {[%clk 0:02:41.6]} 5. Nc3 {[%clk 0:03:05.6]}
5... a6 {[%clk 0:02:42.7]} 6. g3 {[%clk 0:03:06.6]} 6... e5 {[%clk 0:02:43.1]}
7. Nde2 {[%clk 0:03:07.5]} 7... Be7 {[%clk 0:02:42.9]} 8. Bg2 {[%clk 0:03:08.6]}
8... O-O {[%clk 0:02:43.6]} 9. O-O {[%clk 0:03:09.6]} 9... Nbd7 {[%clk
0:02:37.8]} 10. a4 {[%clk 0:03:08.3]} 10... b6 {[%clk 0:02:38.1]} 11. Nd5 {[%clk
0:03:05]} 11... Nxd5 {[%clk 0:02:38.7]} 12. Qxd5 {[%clk 0:03:06.4]} 12... Qc7
{[%clk 0:02:32.1]} 13. Qxa8 {[%clk 0:02:50]} 13... Bb7 {[%clk 0:02:33.1]} 14.
Qxf8+ {[%clk 0:02:50.6]} 14... Bxf8 {[%clk 0:02:35]} 15. Nc3 {[%clk 0:02:51.6]}
15... h6 {[%clk 0:02:28.4]} 16. Be3 {[%clk 0:02:48.4]} 16... Nf6 {[%clk
0:02:29.3]} 17. h3 {[%clk 0:02:31.5]} 17... Bc6 {[%clk 0:02:29.6]} 18. Rfd1
{[%clk 0:02:31]} 18... Qb7 {[%clk 0:02:29.5]} 19. Nd5 {[%clk 0:02:29.5]} 19...
Nxd5 {[%clk 0:02:25.7]} 20. exd5 {[%clk 0:02:28.8]} 20... Bd7 {[%clk 0:02:27.2]}
21. c4 {[%clk 0:02:18.8]} 21... a5 {[%clk 0:02:22.6]} 22. b4 {[%clk 0:02:12.5]}
22... axb4 {[%clk 0:02:22.5]} 23. Rdb1 {[%clk 0:02:12.9]} 23... Qc8 {[%clk
0:02:13.6]} 24. Rxb4 {[%clk 0:02:10.7]} 24... Bxh3 {[%clk 0:02:14.4]} 25. Bxb6
{[%clk 0:02:04]} 25... Bxg2 {[%clk 0:02:11]} 26. Kxg2 {[%clk 0:02:04.8]} 26...
h5 {[%clk 0:02:05.1]} 27. a5 {[%clk 0:01:51.9]} 27... Qa6 {[%clk 0:01:57.1]} 28.
Bd8 {[%clk 0:01:37.9]} 28... f6 {[%clk 0:01:50.8]} 29. Raa4 {[%clk 0:01:21.2]}
29... Kf7 {[%clk 0:01:51]} 30. Bb6 {[%clk 0:01:13]} 30... g5 {[%clk 0:01:49.3]}
31. Be3 {[%clk 0:01:13.3]} 31... g4 {[%clk 0:01:50.1]} 32. Rb6 {[%clk
0:01:13.9]} 32... Qc8 {[%clk 0:01:45]} 33. a6 {[%clk 0:01:11.2]} 33... Qf5
{[%clk 0:01:41.2]} 34. Ra1 {[%clk 0:01:06.8]} 34... h4 {[%clk 0:01:33.4]} 35.
gxh4 {[%clk 0:01:02.1]} 35... Qf3+ {[%clk 0:01:33.5]} 36. Kf1 {[%clk 0:00:50.4]}
36... Qh1+ {[%clk 0:01:30.9]} 37. Ke2 {[%clk 0:00:49.1]} 37... Qxa1 {[%clk
0:01:32.1]} 38. Rb7+ {[%clk 0:00:49]} 38... Kg6 {[%clk 0:01:32.7]} 39. a7 {[%clk
0:00:49.4]} 39... Bh6 {[%clk 0:01:09.7]} 40. Rb8 {[%clk 0:00:23.6]} 40... Qa2+
{[%clk 0:01:05.7]} 41. Kd3 {[%clk 0:00:15.6]} 41... e4+ {[%clk 0:00:35.4]} 42.
Kc3 {[%clk 0:00:07.8]} 42... Bxe3 {[%clk 0:00:29.9]} 43. a8=Q {[%clk 0:00:08.3]}
43... Qd2+ {[%clk 0:00:21.1]} 44. Kb3 {[%clk 0:00:09.1]} 44... Qd3+ {[%clk
0:00:21.9]} 45. Kb4 {[%clk 0:00:07.8]} 45... Bd2+ {[%clk 0:00:11.8]} 46. Kb5
{[%clk 0:00:08.4]} 46... Qb3+ {[%clk 0:00:12.8]} 47. Kc6 {[%clk 0:00:07.5]}
47... Qxc4+ {[%clk 0:00:14]} 48. Kd7 {[%clk 0:00:08.6]} 48... Bb4 {[%clk
0:00:03.2]} 49. Rg8+ {[%clk 0:00:05.5]} 49... Kf5 {[%clk 0:00:04.4]} 50. Qe8
{[%clk 0:00:06.4]} 50... Qxd5 {[%clk 0:00:04.7]} 51. Ke7 {[%clk 0:00:06.4]}
51... Kf4 {[%clk 0:00:04.9]} 52. Qf7 {[%clk 0:00:05.6]} 52... Qxf7+ {[%clk
0:00:05]} 53. Kxf7 {[%clk 0:00:06.7]} 53... d5 {[%clk 0:00:04.9]} 54. h5 {[%clk
0:00:08.1]} 54... f5 {[%clk 0:00:04.6]} 55. h6 {[%clk 0:00:09.1]} 55... Bc3
{[%clk 0:00:05.7]} 56. h7 {[%clk 0:00:09.7]} 56... Kf3 {[%clk 0:00:07]} 57. Rg7
{[%clk 0:00:10.7]} 57... Bxg7 {[%clk 0:00:05.3]} 58. Kxg7 {[%clk 0:00:12.6]}
58... Kxf2 {[%clk 0:00:07.2]} 59. h8=Q {[%clk 0:00:14]} 59... f4 {[%clk
0:00:07.8]} 60. Qh2+ {[%clk 0:00:12.7]} 60... Kf3 {[%clk 0:00:07.2]} 61. Qh1+
{[%clk 0:00:14]} 61... Ke3 {[%clk 0:00:07]} 62. Qe1+ {[%clk 0:00:14.6]} 62...
Kf3 {[%clk 0:00:07.9]} 63. Qf1+ {[%clk 0:00:14.8]} 63... Ke3 {[%clk 0:00:08.4]}
64. Qg1+ {[%clk 0:00:16]} 64... Kf3 {[%clk 0:00:09.1]} 65. Qd1+ {[%clk
0:00:17.1]} 65... Kg3 {[%clk 0:00:09.4]} 66. Qxd5 {[%clk 0:00:17.3]} 66... e3
{[%clk 0:00:09.8]} 67. Qe4 {[%clk 0:00:17.5]} 67... f3 {[%clk 0:00:03.8]} 68.
Qxe3 {[%clk 0:00:18.5]} 68... Kg2 {[%clk 0:00:05]} 69. Qe4 {[%clk 0:00:11.5]}
1-0

[Event "*** Titled Tuesday Blitz"]
[Site "Chess.com"]
[Date "2019.03.05"]
[Round "6"]
[White "DrMelekess"]
[Black "nikitakhoroshev"]
[Result "1-0"]
[WhiteElo "2702"]
[BlackElo "2605"]
[TimeControl "180+2"]
[EndTime "14:29:13 PST"]
[Termination "DrMelekess won by resignation"]

1. d4 {[%clk 0:03:01.9]} 1... Nf6 {[%clk 0:02:58.7]} 2. Nf3 {[%clk 0:03:02.5]}
2... e6 {[%clk 0:02:59.5]} 3. c4 {[%clk 0:03:03.3]} 3... b6 {[%clk 0:03:00.1]}
4. g3 {[%clk 0:03:04.3]} 4... Ba6 {[%clk 0:02:59.4]} 5. Qc2 {[%clk 0:03:04.7]}
5... Bb4+ {[%clk 0:02:58.6]} 6. Bd2 {[%clk 0:03:05.4]} 6... Be7 {[%clk
0:02:59.4]} 7. Bg2 {[%clk 0:03:06.1]} 7... O-O {[%clk 0:03:00.2]} 8. O-O {[%clk
0:03:06.4]} 8... c6 {[%clk 0:03:01.3]} 9. Ne5 {[%clk 0:03:07.1]} 9... d5 {[%clk
0:02:57.1]} 10. cxd5 {[%clk 0:03:08.1]} 10... cxd5 {[%clk 0:02:57]} 11. Nc3
{[%clk 0:03:08.7]} 11... Nbd7 {[%clk 0:02:44.8]} 12. Nc6 {[%clk 0:02:57.7]}
12... Qe8 {[%clk 0:02:44.2]} 13. Qa4 {[%clk 0:02:53.7]} 13... Bb7 {[%clk
0:02:38.2]} 14. Bf4 {[%clk 0:02:27.5]} 14... a6 {[%clk 0:02:16.9]} 15. Rac1
{[%clk 0:02:20.5]} 15... Rc8 {[%clk 0:01:59.8]} 16. Nxe7+ {[%clk 0:01:56.5]}
16... Qxe7 {[%clk 0:02:01.4]} 17. Nb1 {[%clk 0:01:42.6]} 17... Nb8 {[%clk
0:01:28.8]} 18. Qb3 {[%clk 0:01:21]} 18... Nfd7 {[%clk 0:00:59.8]} 19. Rfd1
{[%clk 0:00:17.3]} 19... Nc6 {[%clk 0:00:57.4]} 20. Qd3 {[%clk 0:00:18.4]} 20...
f5 {[%clk 0:00:49.3]} 21. h4 {[%clk 0:00:17.7]} 21... h6 {[%clk 0:00:48.4]} 22.
Qe3 {[%clk 0:00:17.8]} 22... Rfe8 {[%clk 0:00:38.7]} 23. Rc3 {[%clk 0:00:17.4]}
23... b5 {[%clk 0:00:37.6]} 24. Rdc1 {[%clk 0:00:17.9]} 24... b4 {[%clk
0:00:38]} 25. R3c2 {[%clk 0:00:17.9]} 25... Kf7 {[%clk 0:00:31.1]} 26. Nd2
{[%clk 0:00:17.9]} 26... Na5 {[%clk 0:00:30.4]} 27. Rc7 {[%clk 0:00:14.2]} 27...
Bc6 {[%clk 0:00:20]} 28. Rxc8 {[%clk 0:00:11.2]} 28... Rxc8 {[%clk 0:00:19.7]}
29. Nf3 {[%clk 0:00:09.1]} 29... Nc4 {[%clk 0:00:18.3]} 30. Qb3 {[%clk 0:00:10]}
30... Bb5 {[%clk 0:00:17.3]} 31. Bf1 {[%clk 0:00:09]} 31... a5 {[%clk
0:00:16.9]} 32. a4 {[%clk 0:00:10.1]} 32... Ba6 {[%clk 0:00:13.5]} 33. e3 {[%clk
0:00:11]} 33... Ke8 {[%clk 0:00:13.3]} 34. Qa2 {[%clk 0:00:10.4]} 34... b3
{[%clk 0:00:09.6]} 35. Qxb3 {[%clk 0:00:10.9]} 35... Qd8 {[%clk 0:00:10.1]} 36.
Qa2 {[%clk 0:00:11.3]} 36... Bb7 {[%clk 0:00:08]} 37. b3 {[%clk 0:00:11.5]}
37... Ncb6 {[%clk 0:00:08.8]} 38. Qd2 {[%clk 0:00:11.7]} 38... Rxc1 {[%clk
0:00:08.9]} 39. Qxc1 {[%clk 0:00:13.6]} 39... Nc8 {[%clk 0:00:10.5]} 40. Bb5
{[%clk 0:00:12.6]} 40... Ke7 {[%clk 0:00:10.2]} 41. Bc7 {[%clk 0:00:12.6]} 41...
Qg8 {[%clk 0:00:07.8]} 42. Bxa5 {[%clk 0:00:13.6]} 42... Nd6 {[%clk 0:00:06.8]}
43. Bb4 {[%clk 0:00:14.8]} 43... Qc8 {[%clk 0:00:07.6]} 44. Qxc8 {[%clk
0:00:14.1]} 44... Bxc8 {[%clk 0:00:09.4]} 45. Ne5 {[%clk 0:00:15.2]} 45... Nf6
{[%clk 0:00:07.5]} 46. Nc6+ {[%clk 0:00:16.2]} 46... Kd7 {[%clk 0:00:08.7]} 47.
Na7+ {[%clk 0:00:17.2]} 47... Nxb5 {[%clk 0:00:09.4]} 48. Nxb5 {[%clk
0:00:17.6]} 48... Ne4 {[%clk 0:00:09.1]} 49. Kg2 {[%clk 0:00:13.2]} 49... Ba6
{[%clk 0:00:08.1]} 50. f3 {[%clk 0:00:14.7]} 50... Bxb5 {[%clk 0:00:08.9]} 51.
axb5 {[%clk 0:00:13]} 51... Nf6 {[%clk 0:00:09.9]} 52. Bf8 {[%clk 0:00:12.4]}
52... Ne8 {[%clk 0:00:09.8]} 53. Kf2 {[%clk 0:00:10.3]} 53... Kc7 {[%clk
0:00:10.6]} 54. Bc5 {[%clk 0:00:11.8]} 54... Kb7 {[%clk 0:00:11.6]} 55. g4
{[%clk 0:00:11.1]} 55... g6 {[%clk 0:00:11.7]} 56. Bf8 {[%clk 0:00:09.5]} 56...
h5 {[%clk 0:00:11.8]} 57. gxh5 {[%clk 0:00:10.6]} 57... gxh5 {[%clk 0:00:13.7]}
58. Kg3 {[%clk 0:00:11.1]} 58... Kb6 {[%clk 0:00:14.3]} 59. Kf4 {[%clk
0:00:12.6]} 59... Nf6 {[%clk 0:00:15]} 60. Be7 {[%clk 0:00:10.4]} 60... Ng8
{[%clk 0:00:13.9]} 61. Bc5+ {[%clk 0:00:08.8]} 61... Kxb5 {[%clk 0:00:14.7]} 62.
Ke5 {[%clk 0:00:10.1]} 62... Nh6 {[%clk 0:00:13.7]} 63. Kxe6 {[%clk 0:00:10.5]}
63... Kc6 {[%clk 0:00:14.5]} 64. Bf8 {[%clk 0:00:09.9]} 64... Ng4 {[%clk
0:00:15.2]} 65. fxg4 {[%clk 0:00:09.8]} 65... hxg4 {[%clk 0:00:16.9]} 66. Bd6
{[%clk 0:00:09.9]} 66... f4 {[%clk 0:00:17.9]} 67. Bxf4 {[%clk 0:00:10.7]} 67...
g3 {[%clk 0:00:19.8]} 68. Bxg3 {[%clk 0:00:11.8]} 1-0

[Event "*** Titled Tuesday Blitz"]
[Site "Chess.com"]
[Date "2019.03.05"]
[Round "6"]
[White "therealtrader"]
[Black "GadimbayliA"]
[Result "1/2-1/2"]
[WhiteElo "2681"]
[BlackElo "2849"]
[TimeControl "180+2"]
[EndTime "14:29:16 PST"]
[Termination "Game drawn - insufficient material"]

1. d4 {[%clk 0:02:58.9]} 1... Nf6 {[%clk 0:02:59.9]} 2. c4 {[%clk 0:03:00.1]}
2... e5 {[%clk 0:03:01]} 3. dxe5 {[%clk 0:03:00]} 3... Ng4 {[%clk 0:03:02.5]} 4.
Bf4 {[%clk 0:03:01.3]} 4... Nc6 {[%clk 0:03:03.3]} 5. Nf3 {[%clk 0:03:00.4]}
5... Bb4+ {[%clk 0:03:04.1]} 6. Nbd2 {[%clk 0:03:00.2]} 6... Qe7 {[%clk
0:03:06]} 7. e3 {[%clk 0:03:01.2]} 7... Ngxe5 {[%clk 0:03:07.2]} 8. Nxe5 {[%clk
0:03:02.9]} 8... Nxe5 {[%clk 0:03:09]} 9. Be2 {[%clk 0:03:04.6]} 9... Bxd2+
{[%clk 0:03:10.1]} 10. Qxd2 {[%clk 0:03:05.5]} 10... d6 {[%clk 0:03:12]} 11. O-O
{[%clk 0:03:04.7]} 11... O-O {[%clk 0:03:13.1]} 12. b4 {[%clk 0:03:05.3]} 12...
b6 {[%clk 0:03:14.4]} 13. Rac1 {[%clk 0:03:05.6]} 13... Bb7 {[%clk 0:03:15.3]}
14. c5 {[%clk 0:03:04.4]} 14... dxc5 {[%clk 0:02:32.9]} 15. bxc5 {[%clk
0:03:05.2]} 15... Rad8 {[%clk 0:02:33.8]} 16. Qc3 {[%clk 0:03:05.8]} 16... Ng6
{[%clk 0:02:19.7]} 17. Bg3 {[%clk 0:03:06.8]} 17... Nh4 {[%clk 0:02:03.9]} 18.
c6 {[%clk 0:03:05.7]} 18... Bc8 {[%clk 0:02:03.5]} 19. Qe5 {[%clk 0:03:05.7]}
19... Qxe5 {[%clk 0:01:08]} 20. Bxe5 {[%clk 0:03:06.5]} 20... Rd2 {[%clk
0:01:09.9]} 21. Bc4 {[%clk 0:02:56.6]} 21... Be6 {[%clk 0:01:09.1]} 22. Bxc7
{[%clk 0:02:56]} 22... Rc8 {[%clk 0:01:07.6]} 23. Bg3 {[%clk 0:02:40.2]} 23...
Bxc4 {[%clk 0:01:06.6]} 24. Rxc4 {[%clk 0:02:39.3]} 24... Nf5 {[%clk 0:01:08.5]}
25. a4 {[%clk 0:02:24]} 25... Nxg3 {[%clk 0:01:04.6]} 26. hxg3 {[%clk
0:02:24.1]} 26... Rc7 {[%clk 0:01:03.4]} 27. Ra1 {[%clk 0:02:23.4]} 27... Rd6
{[%clk 0:01:01.3]} 28. Rac1 {[%clk 0:02:02.8]} 28... Kf8 {[%clk 0:01:02]} 29. f4
{[%clk 0:02:03.3]} 29... Ke7 {[%clk 0:01:01.4]} 30. Kf2 {[%clk 0:02:04.5]} 30...
Rd2+ {[%clk 0:01:01.4]} 31. Kf3 {[%clk 0:02:05.6]} 31... Kd6 {[%clk 0:01:02.2]}
32. g4 {[%clk 0:02:04.4]} 32... Rd5 {[%clk 0:00:58.7]} 33. g5 {[%clk 0:01:56.5]}
33... Rc5 {[%clk 0:00:57.7]} 34. Rd4+ {[%clk 0:01:57.1]} 34... Kxc6 {[%clk
0:00:57.3]} 35. Rh1 {[%clk 0:01:58.7]} 35... f6 {[%clk 0:00:54.8]} 36. gxf6
{[%clk 0:01:33.6]} 36... gxf6 {[%clk 0:00:56.7]} 37. Rh6 {[%clk 0:01:34.6]}
37... Rf7 {[%clk 0:00:57.6]} 38. g4 {[%clk 0:01:36.5]} 38... Kc7 {[%clk
0:00:56.5]} 39. Re4 {[%clk 0:01:33.8]} 39... f5 {[%clk 0:00:57.5]} 40. gxf5
{[%clk 0:01:34.1]} 40... Rcxf5 {[%clk 0:00:58.1]} 41. Re8 {[%clk 0:01:29.2]}
41... Ra5 {[%clk 0:00:53.1]} 42. Rh8 {[%clk 0:01:23.8]} 42... Rxa4 {[%clk
0:00:53.7]} 43. R8xh7 {[%clk 0:01:25.3]} 43... Rxh7 {[%clk 0:00:55.6]} 44. Rxh7+
{[%clk 0:01:26.8]} 44... Kc6 {[%clk 0:00:54.9]} 45. e4 {[%clk 0:01:26.7]} 45...
b5 {[%clk 0:00:54.7]} 46. f5 {[%clk 0:01:27.1]} 46... b4 {[%clk 0:00:53.4]} 47.
f6 {[%clk 0:01:28.6]} 47... Ra1 {[%clk 0:00:54.2]} 48. Kg2 {[%clk 0:01:28.6]}
48... Rd1 {[%clk 0:00:51]} 49. Rxa7 {[%clk 0:01:18.3]} 49... b3 {[%clk 0:00:39]}
50. f7 {[%clk 0:01:19.3]} 50... Rd8 {[%clk 0:00:36.5]} 51. Ra3 {[%clk
0:01:18.1]} 51... Rf8 {[%clk 0:00:34.7]} 52. Rxb3 {[%clk 0:01:16.8]} 52... Rxf7
{[%clk 0:00:34.1]} 53. Rd3 {[%clk 0:01:15.5]} 53... Rf8 {[%clk 0:00:35]} 54. Kg3
{[%clk 0:01:15.8]} 54... Rf7 {[%clk 0:00:36.1]} 55. Kg4 {[%clk 0:01:16.9]} 55...
Rf8 {[%clk 0:00:36.1]} 56. Rd5 {[%clk 0:01:18.1]} 56... Rg8+ {[%clk 0:00:30.7]}
57. Kf4 {[%clk 0:01:19.1]} 57... Rf8+ {[%clk 0:00:29.4]} 58. Ke5 {[%clk
0:01:19.8]} 58... Re8+ {[%clk 0:00:27]} 59. Kd4 {[%clk 0:01:21]} 59... Re6
{[%clk 0:00:28.5]} 60. e5 {[%clk 0:00:31.7]} 60... Rh6 {[%clk 0:00:28.8]} 61.
Rd8 {[%clk 0:00:33]} 61... Rh4+ {[%clk 0:00:27.8]} 62. Ke3 {[%clk 0:00:34.1]}
62... Kc7 {[%clk 0:00:24.7]} 63. Rd2 {[%clk 0:00:33.9]} 63... Kc6 {[%clk
0:00:24.6]} 64. Kf3 {[%clk 0:00:34.9]} 64... Kc7 {[%clk 0:00:23]} 65. Rd1 {[%clk
0:00:34.4]} 65... Kc8 {[%clk 0:00:21]} 66. Kg3 {[%clk 0:00:25.3]} 66... Re4
{[%clk 0:00:21.8]} 67. Rd5 {[%clk 0:00:26.6]} 67... Kc7 {[%clk 0:00:20.6]} 68.
Kf3 {[%clk 0:00:28]} 68... Rh4 {[%clk 0:00:21.9]} 69. Ke3 {[%clk 0:00:23.1]}
69... Kc6 {[%clk 0:00:21.8]} 70. Rd6+ {[%clk 0:00:23.9]} 70... Kc7 {[%clk
0:00:22.7]} 71. Rd1 {[%clk 0:00:23.7]} 71... Kc6 {[%clk 0:00:21.6]} 72. Kf3
{[%clk 0:00:21.7]} 72... Kc7 {[%clk 0:00:22.7]} 73. Rd2 {[%clk 0:00:22.7]} 73...
Kc6 {[%clk 0:00:19.8]} 74. e6 {[%clk 0:00:21.3]} 74... Rh6 {[%clk 0:00:18.2]}
75. Re2 {[%clk 0:00:18.6]} 75... Rh8 {[%clk 0:00:19.3]} 76. Kf4 {[%clk
0:00:14.6]} 76... Kd6 {[%clk 0:00:20.5]} 77. Kf5 {[%clk 0:00:13.7]} 77... Rf8+
{[%clk 0:00:21.3]} 78. Kg6 {[%clk 0:00:15.1]} 78... Ke7 {[%clk 0:00:22.4]} 79.
Kg7 {[%clk 0:00:13.7]} 79... Rf6 {[%clk 0:00:23.3]} 80. Re1 {[%clk 0:00:14.7]}
80... Rxe6 {[%clk 0:00:25.2]} 81. Rxe6+ {[%clk 0:00:15.8]} 81... Kxe6 {[%clk
0:00:27.1]} 1/2-1/2